Cogmind - Beta 13 @@@ ROGUE MODE // 2024.03.14 @ 21:38:21 // Winter2019/RPGLIKE Player: H3-RMN Result: Destroyed by EX-DEC with AWS/EX-DEC Performance ------------- Evolutions (0) 0 Regions Visited (3) 600 Robots Destroyed (30) 150 Value Destroyed (697) 697 Prototype IDs (42) 840 Alien Tech Used (0) 0 Bonus (300) 300 TOTAL SCORE: 2587 Bonus ------- Aligned with FarCom 300 Cogmind --------- Core Integrity 0/700 Matter 250/300 Energy 265/265 System Corruption 1% Temperature Cool (0) Movement Treading (160) Location -10/Exiles Parts ------- > --- POWER (1) -------- Improved Ion Engine > --- PROPULSION (3) --- Light Treads Light Treads Light Treads > --- UTILITY (3) ------ Improved Terrain Scanner Tractor Beam > --- WEAPON (3) ------- Assault Rifle Light Assault Rifle Longsword +1 > --- INVENTORY (2) ---- Rocket Launcher Datajack Peak State ------------ > --- POWER ------------ Improved Ion Engine > --- PROPULSION ------- Light Treads Light Treads Light Treads > --- UTILITY ---------- Improved Terrain Scanner Weapon Shielding Tractor Beam > --- WEAPON ----------- Assault Rifle Rocket Launcher Longsword +1 > --- INVENTORY -------- Light Assault Rifle Datajack [Rating: 21] Favorites ----------- Power Improved Ion Engine Engine Improved Ion Engine Propulsion Light Treads Treads Light Treads Utility Improved Terrain Scanner Device Improved Terrain Scanner Protection Weapon Shielding Weapon Assault Rifle Ballistic Gun Assault Rifle Launcher Rocket Launcher Slashing Weapon Longsword +1 Special Melee Weapon Datajack Build | -11 -10 -10 -10 ------- Run | Yrd Mat Min Exi Slots Evolved 6 | 3 2 1 . Power . | . . . . Propulsion 2 | 1 1 . . Utility 2 | 1 1 . . Weapon 2 | 1 . 1 . Parts Attached 21 | 7 6 4 4 Power 2 | 1 1 . . Engine 2 | 1 1 . . Core . | . . . . Reactor . | . . . . Propulsion 5 | 2 2 1 . Treads 5 | 2 2 1 . Leg . | . . . . Wheel . | . . . . Hover . | . . . . Flight . | . . . . Utility 5 | 2 3 . . Device 4 | 2 2 . . Storage . | . . . . Processor . | . . . . Hackware . | . . . . Protection 1 | . 1 . . Artifact . | . . . . Weapon 9 | 2 . 3 4 Energy Gun . | . . . . Energy Cannon . | . . . . Ballistic Gun 4 | 2 . 1 1 Ballistic Cannon . | . . . . Launcher 3 | . . 2 1 Special Weapon . | . . . . Impact Weapon . | . . . . Slashing Weapon 1 | . . . 1 Piercing Weapon . | . . . . Special Melee Weapon 1 | . . . 1 Unidentified Prototypes . | . . . . Parts Lost 1 | . . . 1 Power . | . . . . Propulsion . | . . . . Utility 1 | . . . 1 Weapon . | . . . . Highest Loss Streak 1 | . . . 1 To Critical Strikes . | . . . . Average Slot Usage (%) 98 | . 99 100 97 Engine 11 | . 13 10 10 Treads 29 | . 28 30 30 Device 22 | . 27 20 20 Protection 6 | . . 10 9 Ballistic Gun 22 | . 27 19 19 Launcher 2 | . . 10 . Slashing Weapon 1 | . . . 3 Special Melee Weapon 1 | . . . 3 Naked Turns . | . . . . Heaviest Build 19 | 8 13 17 19 Greatest Support 65 | 45 65 65 65 Greatest Overweight (x) . | . . . . Average Overweight (x) . | . . . . Largest Inventory Capacity 2 | 2 2 2 2 Average Capacity 2 | 2 2 2 2 Most Carried 2 | . 2 2 2 Average Carried 1 | . 1 2 1 Final Capacity 2 | 2 2 2 2 Final Carried 2 | . 2 2 2 Class Distribution -------------------- 77% | Mutant 22% | Skirmisher Dominant Class ---------------- Mutant | -10/Materials Skirmisher | -10/Mines Mutant | -10/Exiles Resources | -11 -10 -10 -10 ----------- Run | Yrd Mat Min Exi Matter Collected 755 | 318 280 82 75 Remotely 397 | . 240 82 75 Salvage Created 738 | 124 578 31 5 Parts 58 | 6 41 11 . Haulers Intercepted 1 | . 1 . . Recyclers Shooed . | . . . . Parts Field Recycled . | . . . . Retrieved Matter . | . . . . Parts Self-Destructed . | . . . . Prevented . | . . . . Kills | -11 -10 -10 -10 ------- Run | Yrd Mat Min Exi Combat Hostiles Destroyed 30 | . 17 6 7 Guns 18 | . 17 1 . AOE 12 | . . 5 7 Classes Destroyed 8 | 2 4 1 1 Worker 1 | . . 1 . Tunneler 2 | 2 . . . Hauler 1 | . 1 . . Recycler 1 | 1 . . . Operator 2 | . 2 . . Swarmer 9 | . 3 6 . Grunt 14 | . 14 . . Assembled 7 | . . . 7 Best Kill Streak 7 | 2 5 3 7 Combat Bots Only 7 | . 5 3 7 Max Kills in Single Turn 3 | 1 2 3 3 Gunslinging 1 | . 1 . . Exploded 3 | . . 3 3 Melee . | . . . . Uniques/NPCs Destroyed . | . . . . Combat | -11 -10 -10 -10 -------- Run | Yrd Mat Min Exi Hostile Shots Fired 134 | . 68 6 60 Missed 33 | . 22 4 7 Damage Taken 1444 | . 543 38 863 Core 1121 | . 445 34 642 Absorbed by Shields . | . . . . Redirected to Core 898 | . 306 15 577 Redirected to Shielding 54 | . . . 54 Ignored by Resistances 32 | . . . 32 Core Remaining (%) 100 | 100 . . . Volleys Fired 81 | 12 55 10 4 Largest 2 | 2 2 2 1 Hottest 40 | 40 40 40 33 Shots Fired 151 | 24 110 13 4 Gun 140 | 24 110 6 . Cannon . | . . . . Launcher 11 | . . 7 4 Special . | . . . . Kinetic 140 | 24 110 6 . Thermal . | . . . . Explosive 11 | . . 7 4 Electromagnetic . | . . . . Robot Hit Streak 33 | 8 33 4 1 Robot Miss Streak 4 | 1 4 . 2 Penetration Max . | . . . . Secondary Targets 4 | . 4 . . Max Gunslinging Chain 1 | . 1 . . Shots Hit Robots 109 | 18 73 3 15 Core Hits 64 | 5 39 7 13 Critical Kills . | . . . . Critical Parts Destroyed . | . . . . Critical Strikes . | . . . . Melee Attacks 15 | . . . 15 Impact . | . . . . Slashing 11 | . . . 11 Piercing . | . . . . Sneak Attacks 4 | . . . 4 Combat Hostiles . | . . . . Follow-up Attacks . | . . . . Damage Inflicted 2274 | 186 829 345 914 Guns 1030 | 186 829 15 . Cannons . | . . . . Explosions 786 | . . 330 456 Melee 458 | . . . 458 Ramming . | . . . . Kinetic 1030 | 186 829 15 . Thermal . | . . . . Explosive 786 | . . 330 456 Electromagnetic . | . . . . Impact . | . . . . Slashing 458 | . . . 458 Piercing . | . . . . Highest Corruption 1 | . . . 1 Average Corruption 1 | . . . 1 Corruption Purged . | . . . . Corruption Blocked . | . . . . Effects 1 | . . . 1 Energy Discharges 1 | . . . 1 Overload Shots . | . . . . Overflow Damage 23 | . . . 23 Projectiles . | . . . . Explosions 23 | . . . 23 Melee . | . . . . Knockbacks . | . . . . Impact . | . . . . Kinetic . | . . . . Secondary . | . . . . Self-Inflicted Damage 131 | . . 19 112 Shots 4 | . . 1 3 Rammed . | . . . . Targets Rammed . | . . . . Kicked . | . . . . Crushed . | . . . . Highest Temperature 32 | . 32 2 . Average Temperature 5 | . 5 1 . Received Heat Transfer 219 | . 219 . . Siege Activations . | . . . . Robots Corrupted . | . . . . Combat Hostiles . | . . . . Parts Fried . | . . . . Impact Corruptions . | . . . . Robots Melted . | . . . . Combat Hostiles . | . . . . Parts Melted . | . . . . Heat Transferred . | . . . . Parts Sabotaged . | . . . . Parts Stolen . | . . . . Parts Stripped . | . . . . Power Chain Reactions . | . . . . Alert | -11 -10 -10 -10 ------- Run | Yrd Mat Min Exi Peak Influence 255 | 15 255 197 . Initial 27 | . 9 27 . Average 104 | 5 114 105 . Maximum Alert Level 1 | . 1 . . Low Security (%) 87 | 100 78 100 . Level 1 12 | . 21 . . Level 2 . | . . . . Level 3 . | . . . . Level 4 . | . . . . Level 5 . | . . . . High Security . | . . . . Max Security . | . . . . Squads Dispatched 3 | . 3 . . Investigation 2 | . 2 . . Extermination . | . . . . Reinforcement 1 | . 1 . . Assault . | . . . . Garrison . | . . . . Intercept . | . . . . Searches Triggered . | . . . . Construction Impeded . | . . . . Haulers Reinforced . | . . . . Active Scanning Responses . | . . . . Cargo Convoy Interrupts . | . . . . Stealth | -11 -10 -10 -10 --------- Run | Yrd Mat Min Exi Distress Signals 3 | . 3 . . Communications Jammed . | . . . . Distress Signals . | . . . . Times Spotted 49 | . 26 6 17 Peak Tracking Total 15 | . 5 3 15 Tactical Retreats 5 | . 1 . 4 Traps | -11 -10 -10 -10 ------- Run | Yrd Mat Min Exi Traps Triggered 1 | . 1 . . Indirectly . | . . . . Trap Hack Attempts . | . . . . Triggered . | . . . . Disarmed . | . . . . Reprogrammed . | . . . . Reused . | . . . . Traps Extracted . | . . . . Installed . | . . . . Triggered . | . . . . Machines | -11 -10 -10 -10 ---------- Run | Yrd Mat Min Exi Machines Disabled 9 | . . 5 4 Max in Single Turn 2 | . . 1 2 Machines Repaired . | . . . . Machines Dismantled . | . . . . Machines Sabotaged . | . . . . Overloaded Fab Kills . | . . . . Hacking | -11 -10 -10 -10 --------- Run | Yrd Mat Min Exi Machines Accessed 11 | . 8 . 3 Terminals 6 | . 6 . . Fabricators . | . . . . Repair Stations . | . . . . Recycling Units 2 | . 2 . . Scanalyzers . | . . . . Garrison Access . | . . . . Total Hacks 36 | . 30 . 6 Successful 18 | . 12 . 6 Failed 18 | . 18 . . Catastrophic 4 | . 4 . . Database Lockouts . | . . . . Manual 18 | . 17 . 1 Terminals 24 | . 24 . . Fabricators . | . . . . Repair Stations . | . . . . Recycling Units 6 | . 6 . . Scanalyzers . | . . . . Garrison Access . | . . . . Terminal Hacks 15 | . 9 . 6 Record 5 | . . . 5 Robot Schematic 2 | . 2 . . Robot Analysis 3 | . 3 . . Prototype ID Bank 3 | . 3 . . Unreport Threat 1 | . 1 . . Derelict Proto ID Bank 1 | . . . 1 Fabricator Hacks . | . . . . Repair Station Hacks . | . . . . Recycling Unit Hacks 2 | . 2 . . Report Inventory 2 | . 2 . . Scanalyzer . | . . . . Garrison Access Hacks . | . . . . Unauthorized Hacks 1 | . 1 . . Terminals . | . . . . Fabricators . | . . . . Repair Stations . | . . . . Recycling Units 1 | . 1 . . Tunnel 1 | . 1 . . Scanalyzers . | . . . . Garrison Access . | . . . . Data Cores Recovered 1 | . 1 . . Used 1 | . 1 . . Hacking Detections 7 | . 7 . . Full Trace Events 4 | . 4 . . Feedback Events . | . . . . Feedback Blocked . | . . . . Robot Schematics Acquired 2 | . 2 . . Robots Built . | . . . . Authchips . | . . . . Time . | . . . . Total Robot Build Rating . | . . . . Part Schematics Acquired . | . . . . Parts Built . | . . . . Authchips . | . . . . Time . | . . . . Total Part Build Rating . | . . . . Parts Repaired . | . . . . Time . | . . . . Parts Recycled . | . . . . Recycled Matter . | . . . . Retrieved Matter . | . . . . Retrieved Components . | . . . . Parts Scanalyzed . | . . . . Part Schematics Acquired . | . . . . Parts Damaged . | . . . . Bothacking | -11 -10 -10 -10 ------------ Run | Yrd Mat Min Exi Used RIF Installer . | . . . . Robots Hacked 4 | . . . 4 Non-combat 3 | . . . 3 Combat 1 | . . . 1 Robot Hacks Applied 4 | . . . 4 parse_system 4 | . . . 4 Relay Couplers Released . | . . . . Fabnet Peak Effective % . | . . . . Robots Rewired . | . . . . Allies Hacked . | . . . . Hacks Repelled . | . . . . Allies | -11 -10 -10 -10 -------- Run | Yrd Mat Min Exi Total Allies . | . . . . Largest Group . | . . . . Highest-Rated Group . | . . . . Highest-Rated Ally . | . . . . Total Orders . | . . . . Ally Attacks . | . . . . Total Damage . | . . . . Kills . | . . . . Allies Corrupted . | . . . . Allies Melted . | . . . . Intel | -11 -10 -10 -10 ------- Run | Yrd Mat Min Exi Robot Analysis Total 3 | . 3 . . Derelict Logs Recovered 2 | . . 2 . Drone Launches . | . . . . Drone Recoveries . | . . . . Exploration | -11 -10 -10 -10 ------------- Run | Yrd Mat Min Exi Turns Passed 3391 | 116 1159 752 1364 Spaces Moved 1865 | 50 560 448 807 Core 6 | 6 . . . Treads 1859 | 44 560 448 807 Legs . | . . . . Wheels . | . . . . Hover . | . . . . Flight . | . . . . Fastest Speed 50 | 50 160 160 160 Average Speed 159 | 146 160 160 160 Slowest Speed 160 | 160 160 160 160 Overloaded Moves . | . . . . Propulsion Burnouts . | . . . . Robots Hopped . | . . . . Cave-ins Triggered . | . . . . Exploration Rate (%) 70 | 5 96 97 82 Regions Visited 3 Branch Regions 2 Pre-discovered Areas 2 | . 1 . 1 Known Exits Taken . | . . . . Unknown Exits Taken 3 | 1 1 1 . Scrap Searched 2 | . . 2 . Spaces Dug . | . . . . Terrain Destroyed 63 | . . 48 15 Melee . | . . . . Projectile . | . . . . AOE 63 | . . 48 15 Terrain Rammed . | . . . . Walls Destroyed . | . . . . Machines Disabled . | . . . . Actions | -11 -10 -10 -10 --------- Run | Yrd Mat Min Exi Total 2127 | 68 724 471 864 Wait 102 | . 75 4 23 Move 1862 | 49 559 447 807 Hop . | . . . . Pick Up 8 | . 3 . 5 Fast Attach 14 | 7 5 1 1 Attach . | . . . . Detach . | . . . . Swap 7 | . 1 3 3 Drop 13 | . 5 2 6 Fire 81 | 12 55 10 4 Melee 15 | . . . 15 Ram . | . . . . Kick . | . . . . Crush . | . . . . Escape Stasis . | . . . . Rewire . | . . . . Trap . | . . . . Miscellaneous 25 | . 21 4 . Route ------- -11/Scrapyard -10/Materials (discovered 5 exits: [*Mat x3] / [*Min] / [Sub]) -10/Mines (discovered 4 exits: [*Mat x2] / *Exi / [Sub]) -10/Exiles (discovered 1 exit: [*Min]) History --------- Turn | Location | Event 1 | -11/Scrapyard | Upgraded with Propulsion slot (x1) 1 | -11/Scrapyard | Upgraded with Utility slot (x1) 1 | -11/Scrapyard | Upgraded with Weapon slot (x1) 3 | -11/Scrapyard | Discovered new exit (range 17) 117 | -11/Scrapyard | Entered Materials 317 | -10/Materials | Build established: Mutant 354 | -10/Materials | Discovered new exit (range 17) 493 | -10/Materials | Discovered new exit (range 14) 636 | -10/Materials | Discovered new exit (range 4) 787 | -10/Materials | Reached level 2 871 | -10/Materials | Discovered new exit (range 8) 913 | -10/Materials | Core integrity fell below 50% 1045 | -10/Materials | Discovered new exit (range 14) 1220 | -10/Materials | Upgraded with Propulsion slot (x1) 1220 | -10/Materials | Upgraded with Utility slot (x1) 1276 | -10/Materials | Entered Mines 1278 | -10/Mines | Reached level 3 1288 | -10/Mines | Upgraded with Weapon slot (x1) 1320 | -10/Mines | Received a Rocket Launcher from a helpful Derelict 1390 | -10/Mines | Discovered new exit (range 13) 1492 | -10/Mines | Discovered new exit (range 14) 1493 | -10/Mines | Learned Materials garrison access intel 1501 | -10/Mines | Learned Materials emergency access door positions 1580 | -10/Mines | Discovered new exit (range 13) 1589 | -10/Mines | Build established: Skirmisher 1706 | -10/Mines | Discovered new exit (range 13) 2022 | -10/Mines | Deemed a non-threat by the Exiles lab entrance 2028 | -10/Mines | Entered Exiles 2083 | -10/Exiles | Met 8R-AWN 2106 | -10/Exiles | Met EX-HEX 2192 | -10/Exiles | Met EX-DEC 2205 | -10/Exiles | Learned location of Zion (-7) 2271 | -10/Exiles | Visited The Gauntlet 2366 | -10/Exiles | Build established: Mutant 2525 | -10/Exiles | Met EX-BIN 2652 | -10/Exiles | Discovered new exit (range 16) 2886 | -10/Exiles | Aligned with FarCom system 2887 | -10/Exiles | Given EX-Vault access code 2927 | -10/Exiles | Opened EX-Vault 2935 | -10/Exiles | Found Longsword +1 2974 | -10/Exiles | Warned to stay clear of 0b10 Research branches 3242 | -10/Exiles | Attacked by the Exiles 3314 | -10/Exiles | Destroyed 7 combat bots 3387 | -10/Exiles | Core integrity fell below 20% 3392 | -10/Exiles | Destroyed by EX-DEC with AWS/EX-DEC Last Messages --------------- 03376_ HV Slug penetrates Testing Apparatus. 03376_ HV Slug penetrates Wall. 03380_ Penetrated by HV Slug. 03380_ HV Slug penetrates Earth. 03380_ Penetrated by HV Slug. 03380_ HV Slug penetrates Earth. 03382_ The unstable cave ceiling collapses. 03384_ Penetrated by HV Slug. 03384_ HV Slug penetrates Earth. 03384_ Penetrated by HV Slug. 03384_ HV Slug penetrates Earth. 03387_ Penetrated by HV Slug. 03387_ HV Slug penetrates Machine. 03387_ Machine disabled. 03387_ Penetrated by HV Slug. 03387_ HV Slug penetrates Wall. 03391_ HV Slug penetrates Machine. 03391_ Penetrated by HV Slug. 03391_ HV Slug penetrates Machine. 03391_ Machine disabled. Map ----- +----------------------------------------------------+ | ???????????????????????????#???#??####" | | ??????????????????#??????????#?#????##"""" | | ?????????????????#???????????#???#####"" | | ?????????????????????????????#??###?##" | | ????????????#????#?#??####???????##?##""" | | ?????????###?##??#?#?#???????#??#?##### | | ???????????????#????#???????????#???###"" | | ??????#????#???#??###?#??#??????#??#####""" | | ??????##???#????########?#?##?##?#?#?#?##"""" | | ??????????#???###?###?####?#???????#?#?#### | | ??????#########?#?#############??############## | | ???????????#?##?###?##?#################?####### | | ????????#### ##?###??#######?#####??############ | | ?????#?###### #################?##?####??####### | | ???##?######?# ####################?####?####### | | ???#???########"#### ######################?#### | | ?????###?##### ###"""""""####"""""""#### | | ???##???###?## #;##"""""""####"""""""#### | | ????###?##?### """"""" "####" """"#### | | ???#???######## "#""" """####"" """#### | | ???#?######?## "#"" ""####"" ""#### | | ??#####?####### ## "###"""########"""###### | | ???#?#?#?#"""" " """" """""""" """""" | | ????######" """ """"""" | | ??##??#### " gc c z | | #?#?????##"""" @ c | | ???#?##?## | | ??????#?##""" "" "" | | ???????#?#"" """ "" """ " """"" " """" | | ???????#?########"""########"""###""###"""######## | | ???#????#######"" ""####"" ""#""#"" ""##?#"" | | ???????###?####""" """####""" ""#""#""" ""####"" | | ???????#####??#" """ "####" """"""""#" " "####"" | | ????#????#?####"""""""####"""""""#""#"""""""####"" | | ????????##??###"""""""#?##"""""""#""#"""""""####"" | | ???????##?###?##########?####"####""############## | | ????????????########?#""" ""??""?""?##?##???###??# | | ??????????#?######?###""" """"""??""?##?####?#?##? | | ?????????????#########""" ?##?##?###?#####?#####?? | | ????????????????#??#######??#?##?#?##?##??#?#?###? | | | | | | | | | | | | | | | | | | | | | +----------------------------------------------------+ Best States ------------- Heat Dissipation 25 Energy Generation 12 Energy Capacity 265 Matter Stores 300 Matter Capacity 300 Sight Range 17 Terrain Scan Range 16 Terrain Scan Density 110 Resistance: KI 5 Weapon Shielding 33 Evasion (%) 40 Recoil Reduction 3 Offensive Hacking 5 Defensive Hacking 5 Item Schematics ----------------- None Robot Schematics ------------------ M-13 Machinist | -10/Materials | Hacked O-16 Technician | -10/Materials | Hacked Fabricated ------------ Nothing Alien Tech Used ----------------- None Achievements -------------- None Challenges ------------ None RPGLIKE | -11 -10 -10 -10 --------- Run | Yrd Mat Min Exi Levels Raised 2 | . 1 1 . XP Earned 7200 | 3000 2275 1575 350 XP Spent 5710 | 2900 1600 800 410 Upgrades 17 | 10 2 1 4 Propulsion Slot 2 | 1 1 . . Utility Slot 2 | 1 1 . . Weapon Slot 2 | 1 . 1 . Core Integrity 2 | . . . 2 Mass Support 1 | 1 . . . Inventory Capacity 2 | 2 . . . Sight Range 1 | 1 . . . Terrain Scan Density 1 | 1 . . . Melee Accuracy 1 | . . . 1 Hack Attack % 1 | 1 . . . Hack Defense % 1 | 1 . . . KI Resistance % 1 | . . . 1 Protomatter Created 286 | . 247 29 10 Integrity Restored 445 | . 382 63 . Core 417 | . 354 63 . Parts 28 | . 28 . . Protomatter Decayed 98 | . 98 . . Game ------ Seed CoolantGravmagAutocannon Manual? 0 Play Time 00:23:37 Cumulative 600.9 hours Start 2024.03.14 @ 21:11:50 End 2024.03.14 @ 21:38:21 Sessions 1 Manual Loads 0 Difficulty Rogue Special Mode Winter2019/RPGLIKE Game No. 232 Rogue 210 Adventurer 3 Explorer 19 Win Type - Total 13 Types 8/2/1/1/0/1/0/0/0 Lore% 88 Gallery% 95 Achievement% 82 Wizard Run 0 Options --------- Layout 2 ASCII 0 Keyboard 0 Movement Numpad Keybinds 0 Fullscreen 2 Font 24/Smallcaps Map View 50x44 Zoom Use 0% Tactical HUD 1 Map Filters NONE Filters NONE Steam X RUN: 468f02d5-cca7-4853-9dff-9cf9f1b83cfa